[Event "25th Abu Dhabi Master 2018"]
[Site "Abu Dhabi"]
[Date "2018.08.07"]
[Round "1"]
[White "Wagh, Suyog"]
[Black "Priyanka, Kumari"]
[Result "0-1"]
[ECO "E68"]
[WhiteElo "2356"]
[BlackElo "2005"]
[Annotator "NA"]
[PlyCount "92"]
[EventDate "2018.08.05"]
[EventType "swiss"]
[EventCountry "UAE"]
[SourceTitle "playchess.com"]
[Source "ChessBase"]
[SourceQuality "1"]
[TimeControl "5400+30"]

1. d4 {[%emt 0:00:00]} Nf6 {[%emt 0:00:12]} 2. c4 {[%emt 0:00:00]} g6 {[%emt 0:00:07]} 3. g3 {[%emt 0:00:04]} Bg7 {[%emt 0:00:07]} 4. Bg2 {[%emt 0:00:05]} d6 {[%emt 0:00:10]} 5. Nf3 {[%emt 0:01:13]} O-O {[%emt 0:00:09]} 6. Nc3 {[%emt 0:00:11]} Nbd7 {[%emt 0:01:53]} 7. O-O {[%emt 0:00:20]} e5 {[%emt 0:00:36]} 8. e4 {[%emt 0:00:20]} c6 {[%emt 0:01:00]} 9. Re1 {[%emt 0:02:30]} Re8 {[%emt 0:01:29]} 10. h3 {[%emt 0:01:35]} a6 11. a4 exd4 {[%emt 0:12:18]} 12. Nxd4 {[%emt 0:10:43]} a5 {[%emt 0:01:57]} 13. Be3 {[%emt 0:05:28]} Nc5 {[%emt 0:03:36]} 14. Qc2 {[%emt 0:00:43]} Qc7 {[%emt 0:03:13]} 15. Rad1 {[%emt 0:01:18]} Bd7 {[%emt 0:01:12]} 16. Rd2 {[%emt 0:13:51]} Rad8 {[%emt 0:03:49]} 17. Red1 {[%emt 0:01:10]} Bc8 {[%emt 0:20:19]} 18. f3 {[%emt 0:23:12]} Bf8 19. Bf2 {[%emt 0:02:25]} Ne6 {[%emt 0:14:33]} 20. Nde2 {[%emt 0:04:45]} h5 {[%emt 0:07:13]} 21. Be3 Nd7 22. f4 {[%emt 0:13:42]} Nec5 {[%emt 0:08:59]} 23. Bf2 {[%emt 0:05:09]} Qb6 {[%emt 0:06:13]} 24. e5 {[%emt 0:04:11]} dxe5 {[%emt 0:05:47]} 25. f5 {[%emt 0:00:15]} Qb3 {[%emt 0:01:55]} 26. Qb1 {[%emt 0:05:39]} Kg7 {[%emt 0:01:26]} 27. fxg6 {[%emt 0:01:10]} fxg6 {[%emt 0:00:26]} 28. Ne4 {[%emt 0:01:08]} Nxe4 {[%emt 0:02:11]} 29. Bxe4 {[%emt 0:00:07]} Re6 {[%emt 0:00:51]} 30. Nc3 {[%emt 0:01:33]} Qxc4 {[%emt 0:01:30]} 31. Kg2 {[%emt 0:01:17]} Qb4 {[%emt 0:00:44]} 32. Qa2 {[%emt 0:00:33]} Qe7 {[%emt 0:01:25]} 33. Bb6 {[%emt 0:01:18]} Re8 {[%emt 0:00:08]} 34. Be3 {[%emt 0:00:30]} Nf6 {[%emt 0:00:42]} 35. Bc2 {[%emt 0:00:07]} Qc7 {[%emt 0:00:34]} 36. Qb1 {[%emt 0:00:50]} Nd7 {[%emt 0:00:38]} 37. Ne4 {[%emt 0:00:35]} Nb6 {[%emt 0:00:34]} 38. Bb3 {[%emt 0:00:27]} R6e7 {[%emt 0:00:23]} 39. Bg5 {[%emt 0:00:10]} Rd7 {[%emt 0:00:27]} 40. Bf6+ {[%emt 0:00:14]} Kh7 {[%emt 0:00:26]} 41. Ng5+ {[%emt 0:01:10]} Kh6 {[%emt 0:00:04]} 42. Qc1 {[%emt 0:00:05]} Rxd2+ {[%emt 0:01:09]} 43. Qxd2 {[%emt 0:00:08]} Qd7 {[%emt 0:00:11]} 44. Bg8 Qxd2+ {[%emt 0:00:34]} 45. Rxd2 {[%emt 0:01:13]} Re7 {[%emt 0:00:18]} 46. Rd8 {[%emt 0:00:52]} Nd7 0-1

[Event "25th Abu Dhabi Master 2018"]
[Site "Abu Dhabi"]
[Date "2018.08.07"]
[Round "1"]
[White "Rapport, Jovana"]
[Black "Salonika, Saina"]
[Result "1/2-1/2"]
[ECO "A49"]
[WhiteElo "2354"]
[BlackElo "2069"]
[Annotator "NA"]
[PlyCount "68"]
[EventDate "2018.08.05"]
[EventType "swiss"]
[EventCountry "UAE"]
[SourceTitle "playchess.com"]
[Source "ChessBase"]
[SourceQuality "1"]
[TimeControl "5400+30"]

1. d4 {[%emt 0:00:00]} Nf6 {[%emt 0:00:00]} 2. Nf3 {[%emt 0:00:00]} g6 {[%emt 0:00:00]} 3. g3 {[%emt 0:00:00]} Bg7 {[%emt 0:00:00]} 4. Bg2 {[%emt 0:00:00]} O-O {[%emt 0:00:05]} 5. O-O {[%emt 0:00:00]} c5 {[%emt 0:05:24]} 6. dxc5 {[%emt 0:03:43]} Na6 {[%emt 0:03:58]} 7. Be3 {[%emt 0:00:25]} Qc7 {[%emt 0:05:41]} 8. Nc3 {[%emt 0:08:38]} Nxc5 {[%emt 0:05:14]} 9. Nb5 {[%emt 0:01:29]} Qc6 {[%emt 0:05:01]} 10. Nfd4 {[%emt 0:04:29]} Qb6 {[%emt 0:01:41]} 11. a4 {[%emt 0:01:38]} Ng4 {[%emt 0:05:36]} 12. Bg5 {[%emt 0:01:55]} Qd8 {[%emt 0:04:39]} 13. b4 {[%emt 0:05:03]} Na6 {[%emt 0:04:36]} 14. h3 {[%emt 0:00:15]} h6 {[%emt 0:02:44]} 15. Bd2 {[%emt 0:03:37]} Ne5 {[%emt 0:03:46]} 16. Rb1 {[%emt 0:01:30]} Nc7 {[%emt 0:03:30]} 17. Qc1 {[%emt 0:01:49]} Kh7 {[%emt 0:04:20]} 18. c4 {[%emt 0:01:40]} d6 {[%emt 0:06:55]} 19. Nxc7 {[%emt 0:09:52]} Qxc7 {[%emt 0:00:06]} 20. c5 {[%emt 0:00:02]} a6 {[%emt 0:11:52]} 21. Qc2 {[%emt 0:05:49]} Bd7 {[%emt 0:02:22]} 22. Rfc1 {[%emt 0:00:08]} Rac8 {[%emt 0:01:09]} 23. Qb3 {[%emt 0:02:03]} Nc6 {[%emt 0:02:30]} 24. Nc2 {[%emt 0:02:26]} Be6 {[%emt 0:00:42]} 25. Qa3 {[%emt 0:00:07]} Qd7 {[%emt 0:03:52]} 26. cxd6 {[%emt 0:01:59]} Bxh3 {[%emt 0:02:04]} 27. Bxh3 {[%emt 0:01:27]} Qxh3 {[%emt 0:00:07]} 28. dxe7 {[%emt 0:00:05]} Nxe7 {[%emt 0:00:14]} 29. Ne1 {[%emt 0:01:59]} Nf5 {[%emt 0:02:36]} 30. Rxc8 {[%emt 0:02:59]} Rxc8 {[%emt 0:00:04]} 31. Qd3 {[%emt 0:00:36]} Nd4 {[%emt 0:02:45]} 32. e3 {[%emt 0:00:43]} Ne6 {[%emt 0:00:52]} 33. Qe4 {[%emt 0:01:58]} Ng5 {[%emt 0:00:58]} 34. Qd5 {[%emt 0:06:32]} Rc7 {[%emt 0:00:21]} 1/2-1/2

[Event "25th Abu Dhabi Master 2018"]
[Site "Abu Dhabi"]
[Date "2018.08.07"]
[Round "1"]
[White "Tokhirjonova, Gulrukhbegim"]
[Black "Polakhare, Aryan"]
[Result "0-1"]
[ECO "B41"]
[WhiteElo "2350"]
[BlackElo "1957"]
[Annotator "NA"]
[PlyCount "98"]
[EventDate "2018.08.05"]
[EventType "swiss"]
[EventCountry "UAE"]
[SourceTitle "playchess.com"]
[Source "ChessBase"]
[SourceQuality "1"]
[TimeControl "5400+30"]

1. e4 {[%emt 0:00:00]} c5 {[%emt 0:00:00]} 2. Nf3 {[%emt 0:00:25]} e6 {[%emt 0:00:00]} 3. d4 {[%emt 0:00:20]} cxd4 {[%emt 0:00:00]} 4. Nxd4 {[%emt 0:00:08]} a6 {[%emt 0:00:00]} 5. c4 {[%emt 0:01:23]} d5 {[%emt 0:00:14]} 6. exd5 {[%emt 0:07:03]} exd5 {[%emt 0:00:16]} 7. Nc3 {[%emt 0:00:11]} Nf6 {[%emt 0:01:04]} 8. Bg5 {[%emt 0:03:13]} dxc4 {[%emt 0:02:49]} 9. Bxc4 {[%emt 0:01:55]} Be7 {[%emt 0:00:52]} 10. O-O {[%emt 0:03:19]} O-O {[%emt 0:00:31]} 11. Re1 {[%emt 0:01:41]} b5 {[%emt 0:06:58]} 12. Qf3 {[%emt 0:24:57]} Ra7 {[%emt 0:02:36]} 13. Bb3 {[%emt 0:06:12]} Qxd4 {[%emt 0:08:45]} 14. Be3 {[%emt 0:00:16]} Qd7 {[%emt 0:00:14]} 15. Rad1 {[%emt 0:00:20]} Qc7 {[%emt 0:03:48]} 16. Bxa7 {[%emt 0:06:12]} Qxa7 {[%emt 0:04:46]} 17. h3 {[%emt 0:00:13]} Bc5 {[%emt 0:01:37]} 18. Ne4 {[%emt 0:07:54]} Nxe4 {[%emt 0:04:27]} 19. Rxe4 {[%emt 0:00:09]} Nd7 {[%emt 0:06:11]} 20. Re8 {[%emt 0:08:26]} Nf6 {[%emt 0:02:17]} 21. Rxf8+ {[%emt 0:00:24]} Bxf8 {[%emt 0:00:12]} 22. Qf4 {[%emt 0:01:09]} Qb6 {[%emt 0:01:11]} 23. Rc1 {[%emt 0:02:49]} Be6 {[%emt 0:06:56]} 24. Bxe6 {[%emt 0:05:09]} Qxe6 {[%emt 0:00:39]} 25. b3 {[%emt 0:02:15]} h6 {[%emt 0:00:39]} 26. Qb8 {[%emt 0:01:17]} Nd7 {[%emt 0:01:24]} 27. Qc8 {[%emt 0:00:12]} a5 {[%emt 0:08:12]} 28. Qa8 {[%emt 0:02:52]} a4 {[%emt 0:04:35]} 29. bxa4 {[%emt 0:00:50]} Nb6 {[%emt 0:02:09]} 30. Qa5 {[%emt 0:07:45]} bxa4 {[%emt 0:08:38]} 31. Rb1 {[%emt 0:00:07]} Nd5 {[%emt 0:00:51]} 32. Rb8 {[%emt 0:00:16]} Nf6 {[%emt 0:06:23]} 33. Rd8 {[%emt 0:01:20]} Qxa2 {[%emt 0:02:25]} 34. Qc5 {[%emt 0:03:11]} Nh7 {[%emt 0:00:13]} 35. Ra8 {[%emt 0:01:00]} a3 {[%emt 0:00:27]} 36. Kh2 {[%emt 0:01:54]} Qb2 {[%emt 0:00:36]} 37. f4 {[%emt 0:01:03]} g6 {[%emt 0:02:28]} 38. Qc4 {[%emt 0:00:35]} Kg7 {[%emt 0:01:42]} 39. Ra7 {[%emt 0:00:27]} Qf6 {[%emt 0:00:11]} 40. Ra6 {[%emt 0:00:33]} Qe7 {[%emt 0:01:55]} 41. Qd4+ {[%emt 0:00:04]} Kg8 {[%emt 0:00:09]} 42. Qc3 {[%emt 0:00:55]} Qe4 {[%emt 0:00:33]} 43. Qc7 {[%emt 0:00:24]} Qd5 {[%emt 0:01:02]} 44. Qc2 {[%emt 0:00:16]} Bd6 {[%emt 0:02:32]} 45. Ra4 {[%emt 0:00:22]} Nf6 {[%emt 0:00:51]} 46. Qc8+ {[%emt 0:00:24]} Kg7 {[%emt 0:00:04]} 47. Qc3 {[%emt 0:00:24]} g5 {[%emt 0:02:00]} 48. Rd4 {[%emt 0:01:10]} Bxf4+ {[%emt 0:01:22]} 49. Kg1 {[%emt 0:00:13]} Be5 {[%emt 0:00:55]} 0-1

[Event "25th Abu Dhabi Master 2018"]
[Site "Abu Dhabi"]
[Date "2018.08.07"]
[Round "1"]
[White "Padmini, Rout"]
[Black "Fedoseev, Vladimir"]
[Result "0-1"]
[ECO "B07"]
[WhiteElo "2338"]
[BlackElo "2152"]
[Annotator "NA"]
[PlyCount "74"]
[EventDate "2018.08.05"]
[EventType "swiss"]
[EventCountry "UAE"]
[SourceTitle "playchess.com"]
[Source "ChessBase"]
[SourceQuality "1"]
[TimeControl "5400+30"]

1. e4 {[%emt 0:00:00]} d6 {[%emt 0:00:24]} 2. d4 {[%emt 0:00:00]} Nf6 {[%emt 0:00:07]} 3. Nc3 {[%emt 0:00:21]} Nc6 {[%emt 0:00:55]} 4. f3 {[%emt 0:04:08]} e5 {[%emt 0:01:59]} 5. d5 {[%emt 0:00:55]} Ne7 {[%emt 0:01:35]} 6. Bc4 {[%emt 0:17:26]} c6 {[%emt 0:05:45]} 7. Bg5 {[%emt 0:07:58]} b5 {[%emt 0:06:42]} 8. Bb3 {[%emt 0:07:01]} b4 {[%emt 0:00:17]} 9. Na4 {[%emt 0:02:38]} cxd5 {[%emt 0:00:40]} 10. exd5 {[%emt 0:00:17]} h6 {[%emt 0:04:45]} 11. Bxf6 {[%emt 0:03:58]} gxf6 {[%emt 0:01:53]} 12. Ne2 {[%emt 0:01:19]} h5 {[%emt 0:04:21]} 13. Qd2 {[%emt 0:07:45]} Rb8 {[%emt 0:00:47]} 14. Bc4 {[%emt 0:01:44]} Bh6 {[%emt 0:02:10]} 15. f4 {[%emt 0:01:17]} Ng6 {[%emt 0:04:34]} 16. g3 {[%emt 0:00:46]} Bg4 {[%emt 0:07:49]} 17. O-O-O {[%emt 0:10:50]} Qa5 {[%emt 0:05:33]} 18. b3 {[%emt 0:01:14]} exf4 {[%emt 0:09:30]} 19. Nxf4 {[%emt 0:01:18]} Bxd1 {[%emt 0:00:12]} 20. Rxd1 {[%emt 0:00:05]} h4 {[%emt 0:01:10]} 21. Kb1 {[%emt 0:00:29]} Ne5 {[%emt 0:00:17]} 22. Nb2 {[%emt 0:03:50]} hxg3 {[%emt 0:01:11]} 23. hxg3 {[%emt 0:00:04]} Bg5 {[%emt 0:00:12]} 24. Qe2 {[%emt 0:00:42]} Kf8 {[%emt 0:00:37]} 25. Nfd3 {[%emt 0:00:39]} Re8 {[%emt 0:01:05]} 26. Nxe5 {[%emt 0:00:15]} Rxe5 {[%emt 0:02:24]} 27. Qg4 {[%emt 0:00:32]} Qb6 {[%emt 0:00:36]} 28. Nd3 {[%emt 0:03:54]} Re7 {[%emt 0:00:52]} 29. Nf4 {[%emt 0:01:50]} Rh2 {[%emt 0:00:44]} 30. Nh3 {[%emt 0:03:02]} Rd2 {[%emt 0:02:00]} 31. Rf1 {[%emt 0:07:46]} Qe3 {[%emt 0:00:14]} 32. Nxg5 {[%emt 0:00:22]} Qxg5 {[%emt 0:02:27]} 33. Qc8+ {[%emt 0:00:25]} Re8 {[%emt 0:00:12]} 34. Qh3 {[%emt 0:03:29]} Kg7 {[%emt 0:07:08]} 35. Bd3 {[%emt 0:02:16]} Rh8 {[%emt 0:01:16]} 36. Qd7 {[%emt 0:00:46]} Rhh2 {[%emt 0:00:37]} 37. Qxd6 {[%emt 0:00:55]} Rhf2 {[%emt 0:00:23]} 0-1

[Event "25th Abu Dhabi Master 2018"]
[Site "Abu Dhabi"]
[Date "2018.08.07"]
[Round "1"]
[White "Pranav, Vijay"]
[Black "Shyam, Sundar M."]
[Result "1/2-1/2"]
[ECO "A45"]
[WhiteElo "2265"]
[BlackElo "2527"]
[Annotator "NA RC"]
[PlyCount "95"]
[EventDate "2018.08.05"]
[EventType "swiss"]
[EventCountry "UAE"]
[SourceTitle "playchess.com"]
[Source "ChessBase"]
[SourceQuality "1"]
[TimeControl "5400+30"]

1. d4 {[%emt 0:00:00]} Nf6 {[%emt 0:00:00]} 2. Nc3 {[%emt 0:00:00]} d5 {[%emt 0:00:18]} 3. Bf4 {[%emt 0:00:00]} a6 {[%emt 0:05:40]} 4. e3 {[%emt 0:00:15]} e6 {[%emt 0:01:06]} 5. Nf3 {[%emt 0:01:23]} c5 {[%emt 0:05:09]} 6. a3 {[%emt 0:02:32]} Nc6 {[%emt 0:00:25]} 7. h3 {[%emt 0:03:20]} c4 {[%emt 0:11:15]} 8. Be2 {[%emt 0:04:31]} b5 {[%emt 0:00:08]} 9. O-O {[%emt 0:01:36]} Bd6 {[%emt 0:06:00]} 10. Ne5 {[%emt 0:10:48]} Qc7 {[%emt 0:12:06]} 11. Nxc6 {[%emt 0:01:00]} Bxf4 {[%emt 0:00:03]} 12. exf4 {[%emt 0:00:22]} Qxc6 {[%emt 0:00:03]} 13. Qd2 {[%emt 0:01:23]} O-O {[%emt 0:00:50]} 14. Bf3 {[%emt 0:01:30]} Bd7 {[%emt 0:00:58]} 15. Ne2 {[%emt 0:08:54]} a5 {[%emt 0:02:23]} 16. c3 {[%emt 0:04:14]} Rab8 {[%emt 0:01:04]} 17. g4 {[%emt 0:02:42]} Qd6 {[%emt 0:17:15]} 18. Qe3 {[%emt 0:04:19]} Bc6 {[%emt 0:06:46]} 19. Ng3 {[%emt 0:02:52]} Rfe8 {[%emt 0:01:36]} 20. Rfe1 {[%emt 0:06:13]} Ra8 {[%emt 0:01:02]} 21. Re2 {[%emt 0:04:05]} Nd7 {[%emt 0:04:42]} 22. Rae1 {[%emt 0:01:34]} b4 {[%emt 0:04:17]} 23. axb4 {[%emt 0:04:09]} axb4 {[%emt 0:00:40]} 24. Qd2 {[%emt 0:01:51]} b3 {[%emt 0:06:57]} 25. Bg2 {[%emt 0:01:03]} Rad8 {[%emt 0:02:30]} 26. h4 {[%emt 0:02:04]} Nf8 {[%emt 0:03:28]} 27. h5 {[%emt 0:00:29]} f6 {[%emt 0:00:12]} 28. f5 {[%emt 0:13:50]} e5 {[%emt 0:01:08]} 29. dxe5 {[%emt 0:00:15]} fxe5 {[%emt 0:00:11]} 30. h6 {[%emt 0:00:06]} Qxh6 {[%emt 0:01:59]} 31. Qxh6 {[%emt 0:00:11]} gxh6 {[%emt 0:00:01]} 32. Rxe5 {[%emt 0:00:01]} Kf7 {[%emt 0:02:26]} 33. Rxe8 {[%emt 0:02:36]} Rxe8 {[%emt 0:01:40]} 34. Rd1 {[%emt 0:00:04]} Nd7 {[%emt 0:01:23]} 35. Bxd5+ {[%emt 0:01:39]} Bxd5 {[%emt 0:00:01]} 36. Rxd5 {[%emt 0:00:03]} Nf6 {[%emt 0:00:02]} 37. Rd4 {[%emt 0:00:13]} Re1+ {[%emt 0:00:25]} 38. Kg2 {[%emt 0:06:34]} Rb1 {[%emt 0:00:03]} 39. Ne4 {[%emt 0:03:50]} Rxb2 {[%emt 0:00:05]} 40. Nxf6 {[%emt 0:00:26]} Kxf6 {[%emt 0:00:01]} 41. Rxc4 {[%emt 0:00:01]} Rc2 {[%emt 0:01:58]} 42. Rc6+ {[%emt 0:00:52]} Kg7 {[%emt 0:00:01]} 43. Rc7+ {[%emt 0:02:02]} Kg8 {[%emt 0:00:01]} 44. Rc8+ {[%emt 0:03:03]} Kg7 {[%emt 0:00:02]} 45. Rc6 {[%emt 0:00:15]} b2 {[%emt 0:00:41]} 46. Rb6 {[%emt 0:00:05]} Kf7 {[%emt 0:00:08]} 47. c4 {[%emt 0:01:20]} Rxc4 {[%emt 0:00:06]} 48. Rxb2 1/2-1/2

[Event "25th Abu Dhabi Master 2018"]
[Site "Abu Dhabi"]
[Date "2018.08.07"]
[Round "1"]
[White "Krishnater, Kushager"]
[Black "Firouzja, Alireza"]
[Result "0-1"]
[ECO "B90"]
[WhiteElo "2256"]
[BlackElo "2561"]
[Annotator "ChessBase"]
[PlyCount "62"]
[EventDate "2018.08.05"]
[EventType "swiss"]
[EventCountry "UAE"]
[SourceTitle "playchess.com"]
[Source "ChessBase"]
[SourceQuality "1"]
[TimeControl "5400+30"]

1. e4 {[%emt 0:00:00]} c5 {[%emt 0:00:05]} 2. Nf3 {[%emt 0:00:00]} d6 {[%emt 0:00:33]} 3. d4 {[%emt 0:00:00]} cxd4 {[%emt 0:00:07]} 4. Nxd4 {[%emt 0:00:00]} Nf6 {[%emt 0:00:06]} 5. Nc3 {[%emt 0:00:00]} a6 {[%emt 0:00:23]} 6. h3 {[%emt 0:00:00]} e6 {[%emt 0:00:15]} 7. g4 {[%emt 0:00:05]} Be7 {[%emt 0:00:51]} 8. g5 {[%emt 0:03:33]} Nfd7 {[%emt 0:00:06]} 9. h4 {[%emt 0:00:06]} b5 {[%emt 0:00:04]} 10. a3 {[%emt 0:00:31]} Bb7 {[%emt 0:00:07]} 11. Be3 {[%emt 0:00:05]} Nb6 {[%emt 0:01:25]} 12. Nxe6 {[%emt 0:11:24]} fxe6 {[%emt 0:00:37]} 13. Qd4 {[%emt 0:00:04]} Na4 {[%emt 0:24:54]} 14. Qxg7 {[%emt 0:08:11]} Kd7 {[%emt 0:04:05]} 15. Nxa4 {[%emt 0:15:15]} bxa4 {[%emt 0:00:31]} 16. O-O-O {[%emt 0:05:28]} Bxe4 {[%emt 0:07:35]} 17. Bc5 {[%emt 0:02:20]} Qf8 {[%emt 0:07:43]} 18. Rxd6+ {[%emt 0:14:23]} Kc7 {[%emt 0:00:40]} 19. Qc3 {[%emt 0:02:14]} Bxd6 {[%emt 0:18:41]} 20. Bxd6+ {[%emt 0:03:13]} Kxd6 {[%emt 0:00:07]} 21. Qb4+ {[%emt 0:00:02]} Kc7 {[%emt 0:02:48]} 22. Qxe4 {[%emt 0:00:10]} Nd7 {[%emt 0:13:20]} 23. Bg2 {[%emt 0:01:16]} Ra7 {[%emt 0:02:44]} 24. Rd1 {[%emt 0:05:01]} Qc5 {[%emt 0:04:55]} 25. Qxe6 {[%emt 0:04:17]} Rd8 {[%emt 0:00:53]} 26. Rd3 {[%emt 0:12:44]} Kb8 {[%emt 0:00:50]} 27. Bh3 {[%emt 0:02:49]} Qxf2 {[%emt 0:02:08]} 28. Qe7 {[%emt 0:04:47]} Rc8 {[%emt 0:01:00]} 29. c3 {[%emt 0:00:21]} Nc5 {[%emt 0:02:16]} 30. Qd6+ {[%emt 0:00:57]} Rac7 {[%emt 0:00:11]} 31. Rd1 {[%emt 0:03:25]} Qe3+ {[%emt 0:00:13]} 0-1

[Event "25th Abu Dhabi Master 2018"]
[Site "Abu Dhabi"]
[Date "2018.08.07"]
[Round "1"]
[White "Dixit, Nikhil"]
[Black "Kadric, Denis"]
[Result "0-1"]
[ECO "B00"]
[WhiteElo "2240"]
[BlackElo "2537"]
[Annotator "RC"]
[PlyCount "98"]
[EventDate "2018.08.05"]
[EventType "swiss"]
[EventCountry "UAE"]
[SourceTitle "playchess.com"]
[Source "ChessBase"]
[SourceQuality "1"]
[TimeControl "5400+30"]

1. e4 {[%emt 0:00:00]} Nc6 {[%emt 0:00:00]} 2. d4 {[%emt 0:00:45]} d6 {[%emt 0:00:00]} 3. Nf3 {[%emt 0:03:06]} Nf6 {[%emt 0:00:00]} 4. Nc3 {[%emt 0:01:18]} g6 {[%emt 0:00:00]} 5. Be2 {[%emt 0:02:11]} Bg7 {[%emt 0:00:00]} 6. O-O {[%emt 0:00:06]} O-O {[%emt 0:00:00]} 7. d5 {[%emt 0:08:43]} Nb8 {[%emt 0:00:00]} 8. Be3 {[%emt 0:01:00]} e5 {[%emt 0:01:07]} 9. dxe6 {[%emt 0:00:43]} Bxe6 {[%emt 0:00:04]} 10. Qd2 {[%emt 0:02:13]} Re8 {[%emt 0:02:12]} 11. Bh6 {[%emt 0:05:18]} Bg4 {[%emt 0:07:23]} 12. h3 {[%emt 0:07:42]} Bxh6 {[%emt 0:02:55]} 13. Qxh6 {[%emt 0:00:11]} Bxf3 {[%emt 0:00:02]} 14. Bxf3 {[%emt 0:00:15]} Nbd7 {[%emt 0:00:27]} 15. g3 {[%emt 0:02:10]} Re5 {[%emt 0:01:07]} 16. Bg2 {[%emt 0:23:47]} Nc5 {[%emt 0:03:49]} 17. Rae1 {[%emt 0:01:33]} Qe7 {[%emt 0:08:38]} 18. Qe3 {[%emt 0:12:08]} Ncxe4 {[%emt 0:08:15]} 19. Bxe4 {[%emt 0:11:51]} Nxe4 {[%emt 0:01:30]} 20. f4 {[%emt 0:01:29]} Re6 {[%emt 0:00:02]} 21. Nd5 {[%emt 0:00:39]} Qd8 {[%emt 0:00:04]} 22. f5 {[%emt 0:02:52]} Re5 {[%emt 0:02:21]} 23. fxg6 {[%emt 0:03:00]} hxg6 {[%emt 0:00:04]} 24. Qf4 {[%emt 0:01:42]} Ng5 {[%emt 0:02:14]} 25. Nf6+ {[%emt 0:03:41]} Kg7 {[%emt 0:00:02]} 26. Qd4 {[%emt 0:01:31]} Nf3+ {[%emt 0:00:30]} 27. Rxf3 {[%emt 0:00:07]} Rxe1+ {[%emt 0:00:02]} 28. Kf2 {[%emt 0:00:29]} Re5 {[%emt 0:00:10]} 29. Ng4 {[%emt 0:01:37]} Qe7 {[%emt 0:00:26]} 30. Re3 {[%emt 0:01:31]} f6 {[%emt 0:01:09]} 31. Nxe5 {[%emt 0:00:17]} fxe5 {[%emt 0:00:06]} 32. Qe4 {[%emt 0:00:32]} c6 {[%emt 0:00:15]} 33. Kg2 {[%emt 0:00:24]} Rf8 {[%emt 0:00:12]} 34. Rf3 {[%emt 0:00:46]} d5 {[%emt 0:00:08]} 35. Qe3 {[%emt 0:00:19]} Rxf3 {[%emt 0:01:46]} 36. Kxf3 {[%emt 0:00:40]} d4 {[%emt 0:00:26]} 37. Qd3 {[%emt 0:00:51]} Qe6 {[%emt 0:00:30]} 38. Qb3 {[%emt 0:00:50]} e4+ {[%emt 0:00:42]} 39. Ke2 {[%emt 0:00:28]} Qxb3 {[%emt 0:01:38]} 40. axb3 {[%emt 0:00:04]} c5 {[%emt 0:00:05]} 41. Kf2 {[%emt 0:00:13]} Kf6 {[%emt 0:00:03]} 42. Ke2 {[%emt 0:00:04]} Kf5 {[%emt 0:00:31]} 43. Kf2 {[%emt 0:00:05]} g5 {[%emt 0:00:44]} 44. Ke2 {[%emt 0:00:10]} a5 {[%emt 0:00:31]} 45. Kf2 {[%emt 0:00:05]} b5 {[%emt 0:00:17]} 46. Ke2 {[%emt 0:00:05]} a4 {[%emt 0:00:20]} 47. bxa4 {[%emt 0:00:39]} bxa4 {[%emt 0:00:02]} 48. Kf2 {[%emt 0:00:14]} c4 {[%emt 0:00:10]} 49. Ke2 {[%emt 0:00:03]} c3 {[%emt 0:00:16] Kd3} 0-1

[Event "25th Abu Dhabi Master 2018"]
[Site "Abu Dhabi"]
[Date "2018.08.07"]
[Round "1"]
[White "Gajwa, Ankit"]
[Black "Vishnu, Prasanna V"]
[Result "0-1"]
[ECO "B51"]
[WhiteElo "2223"]
[BlackElo "2517"]
[Annotator "ChessBase"]
[PlyCount "92"]
[EventDate "2018.08.05"]
[EventType "swiss"]
[EventCountry "UAE"]
[SourceTitle "playchess.com"]
[Source "ChessBase"]
[SourceQuality "1"]
[TimeControl "5400+30"]

1. e4 {[%emt 0:00:00]} c5 {[%emt 0:00:00]} 2. Nf3 {[%emt 0:00:00]} d6 {[%emt 0:00:00]} 3. Bb5+ {[%emt 0:00:06]} Nd7 {[%emt 0:00:00]} 4. d4 {[%emt 0:00:17]} Ngf6 {[%emt 0:00:14]} 5. Nc3 {[%emt 0:00:12]} cxd4 {[%emt 0:01:02]} 6. Qxd4 {[%emt 0:00:09]} e5 {[%emt 0:00:33]} 7. Qd3 {[%emt 0:00:34]} h6 {[%emt 0:00:11]} 8. a4 {[%emt 0:02:32]} Be7 {[%emt 0:00:18]} 9. Be3 {[%emt 0:01:57]} O-O {[%emt 0:00:36]} 10. O-O Nb8 {[%emt 0:03:35]} 11. Rfd1 {[%emt 0:13:26]} Be6 {[%emt 0:08:10]} 12. Qe2 {[%emt 0:17:11]} Qc7 {[%emt 0:02:39]} 13. a5 {[%emt 0:01:25]} Na6 {[%emt 0:08:09]} 14. Ra4 {[%emt 0:12:59]} Rfc8 {[%emt 0:06:20]} 15. Nh4 {[%emt 0:05:33]} Bf8 {[%emt 0:11:30]} 16. h3 {[%emt 0:08:58]} Nc5 {[%emt 0:02:32]} 17. Bxc5 {[%emt 0:03:29]} Qxc5 {[%emt 0:00:07]} 18. Qf3 {[%emt 0:02:58]} a6 {[%emt 0:04:58]} 19. Bf1 {[%emt 0:00:54]} Bd7 {[%emt 0:02:36]} 20. Rc4 {[%emt 0:06:48]} Qxa5 {[%emt 0:02:54]} 21. Nf5 {[%emt 0:03:55]} Be6 {[%emt 0:14:37]} 22. Nxh6+ {[%emt 0:03:35]} Kh7 {[%emt 0:00:52]} 23. Rxc8 {[%emt 0:00:40]} Rxc8 {[%emt 0:00:07]} 24. Nf5 {[%emt 0:13:06]} Qb4 {[%emt 0:00:18]} 25. Ne3 {[%emt 0:01:09]} Qxb2 {[%emt 0:01:53]} 26. Ncd5 {[%emt 0:00:04]} Nd7 {[%emt 0:04:24]} 27. Bd3 {[%emt 0:00:56]} Kg8 {[%emt 0:04:07]} 28. c3 {[%emt 0:00:32]} Rxc3 {[%emt 0:03:23]} 29. Nxc3 {[%emt 0:00:28]} Qxc3 {[%emt 0:00:05]} 30. Qe2 {[%emt 0:00:34]} b5 {[%emt 0:00:29]} 31. Bb1 {[%emt 0:00:29]} Nf6 {[%emt 0:00:31]} 32. Kh2 {[%emt 0:00:30]} g6 {[%emt 0:00:55]} 33. Ba2 {[%emt 0:00:32]} Bxa2 {[%emt 0:00:49]} 34. Qxa2 {[%emt 0:00:05]} Nxe4 {[%emt 0:00:39]} 35. Qxa6 {[%emt 0:00:55]} Nxf2 {[%emt 0:00:26]} 36. Nd5 {[%emt 0:00:20]} Qc4 {[%emt 0:00:34]} 37. Rd2 {[%emt 0:00:41]} Ne4 {[%emt 0:01:01]} 38. Rd1 {[%emt 0:00:18]} Bh6 {[%emt 0:01:12]} 39. Qb7 {[%emt 0:00:39]} Kg7 {[%emt 0:02:27]} 40. Ra1 {[%emt 0:00:31]} Nc3 {[%emt 0:00:51]} 41. Nxc3 {[%emt 0:00:32]} Qxc3 {[%emt 0:00:09]} 42. Rf1 {[%emt 0:00:30]} Bf4+ {[%emt 0:00:28]} 43. Kg1 {[%emt 0:00:28]} b4 {[%emt 0:00:27]} 44. Qd5 {[%emt 0:00:32]} b3 {[%emt 0:00:41]} 45. Qxd6 {[%emt 0:00:28]} b2 {[%emt 0:00:08]} 46. Qd5 {[%emt 0:00:23]} Qd4+ {[%emt 0:01:04]} 0-1